bitfinex/quotes_BTCUSD_20250814
["timestamp","ask_amount","ask_price","bid_price","bid_amount"]
[1755175383584,0.5,119510.0,119500.0,7.61872259]
[1755175383585,0.46052112,119510.0,119500.0,7.61872259]
[1755175383809,0.46052112,119510.0,119500.0,7.68514639]
[1755175384052,0.45216557,119510.0,119500.0,7.61872259]
[1755175384265,0.44381002,119510.0,119500.0,7.61872259]
[1755175384488,0.41456559,119510.0,119500.0,7.61872259]
[1755175384712,0.36672492,119510.0,119500.0,7.63535772]
[1755175384936,1e-08,119510.0,119500.0,7.70178152]
[1755175385190,0.49164445,119520.0,119510.0,0.55066132]
[1755175385385,0.49164445,119520.0,119510.0,6.67837548]
[1755175385655,0.4832889,119520.0,119510.0,7.68119703]
[1755175385884,0.5,119580.0,119510.0,7.72282406]
[1755175386107,0.5,119580.0,119570.0,0.97851198]
[1755175386332,0.50314,119580.0,119570.0,1.87152288]
[1755175386564,0.48314,119580.0,119570.0,1.87152288]
[1755175387069,0.48,119580.0,119570.0,1.48300018]
[1755175387529,0.48,119580.0,119570.0,1.38564018]
[1755175387785,0.48,119580.0,119570.0,1.40614518]
[1755175387999,0.48,119580.0,119570.0,1.79466788]
[1755175388220,0.48,119580.0,119570.0,1.74544888]
[1755175388449,0.48314,119580.0,119570.0,0.95405315]
[1755175388675,0.60006,119580.0,119570.0,0.93354815]
[1755175388894,0.60206,119580.0,119570.0,0.93354815]
[1755175389138,0.60006,119580.0,119570.0,0.93354815]
[1755175389370,0.60106,119580.0,119570.0,0.93354815]
[1755175390039,0.60106,119580.0,119570.0,1.32207085]
[1755175390297,0.60106,119580.0,119570.0,0.93354815]
[1755175390298,0.48414,119580.0,119570.0,0.93354815]
[1755175390506,0.48414,119580.0,119570.0,0.95856271]
[1755175390729,0.48314,119580.0,119570.0,0.95856271]
[1755175390971,0.48314,119580.0,119570.0,1.34677168]
[1755175391173,0.48914,119580.0,119570.0,1.34677168]
[1755175391595,0.48614,119580.0,119570.0,1.94430936]
[1755175391814,0.487,119580.0,119570.0,1.71115236]
[1755175392029,0.482,119580.0,119570.0,1.74788731]
[1755175392242,0.475,119580.0,119570.0,1.81427221]
[1755175392455,0.479,119580.0,119570.0,1.81427221]
[1755175392669,0.482,119580.0,119570.0,1.29242966]
[1755175392856,0.482,119580.0,119570.0,1.98153824]
[1755175393313,0.482,119580.0,119570.0,1.29242966]
[1755175393529,0.482,119580.0,119570.0,1.45969569]
[1755175393747,0.482,119580.0,119570.0,1.98153824]
[1755175393966,0.475,119580.0,119570.0,1.98153824]
[1755175394179,0.477,119580.0,119570.0,1.98153824]
[1755175394418,0.47874561,119580.0,119570.0,1.98153824]
[1755175394631,0.47574561,119580.0,119570.0,1.91515334]
[1755175394843,0.47574561,119580.0,119570.0,1.92185928]
[1755175395060,0.47574561,119580.0,119570.0,1.92438928]
[1755175395316,0.47574561,119580.0,119570.0,1.94604265]
[1755175395526,0.47574561,119580.0,119570.0,1.52639382]
[1755175395734,0.47574561,119580.0,119570.0,1.94638045]
[1755175395945,0.47574561,119580.0,119570.0,1.9096455]
[1755175396160,0.47574561,119580.0,119570.0,2.47165017]
[1755175396369,0.07152534,119580.0,119570.0,3.47165017]
[1755175396601,0.02390981,119600.0,119570.0,3.60989701]
[1755175396815,0.0404338,119610.0,119600.0,0.53201525]
[1755175397037,0.0404338,119610.0,119600.0,4.14596735]
[1755175397248,0.0404338,119610.0,119600.0,3.1850055]
[1755175397454,0.0404338,119610.0,119600.0,3.61302305]
[1755175397669,0.0404338,119610.0,119600.0,3.09245082]
[1755175397894,0.0404338,119610.0,119600.0,3.33488114]
[1755175398101,0.0404338,119610.0,119600.0,2.6597345]
[1755175398339,0.0404338,119610.0,119600.0,2.5410415]
[1755175398340,0.0403338,119610.0,119600.0,2.5410415]
[1755175398548,0.0403338,119610.0,119600.0,3.10127118]
[1755175398758,0.0403338,119610.0,119600.0,2.01110018]
[1755175398964,0.0403338,119610.0,119600.0,2.28024135]
[1755175399420,0.0403338,119610.0,119600.0,1.7583988]
[1755175399633,0.0403338,119610.0,119600.0,2.7357156]
[1755175399851,0.0403338,119610.0,119600.0,1.6920305]
[1755175400272,0.0413338,119610.0,119600.0,2.03908135]
[1755175400523,0.0413338,119610.0,119600.0,2.28020135]
[1755175400962,0.0413338,119610.0,119600.0,1.7583588]
[1755175401181,0.0413338,119610.0,119600.0,3.21383305]
[1755175401598,0.0403338,119610.0,119600.0,3.28020135]
[1755175402032,0.0403338,119610.0,119600.0,1.47681963]
[1755175402033,0.01042951,119610.0,119600.0,1.47681963]
[1755175402510,0.01042951,119610.0,119600.0,2.02345335]
[1755175403075,0.01042951,119610.0,119600.0,0.57520563]
[1755175403336,0.01356951,119610.0,119600.0,0.96663063]
[1755175403597,0.01356951,119610.0,119600.0,0.34897155]
[1755175403798,0.01356951,119610.0,119600.0,0.79041155]
[1755175404006,0.01356951,119610.0,119600.0,1.80940618]
[1755175404222,0.01042951,119610.0,119600.0,1.28756363]
[1755175404683,0.01042951,119610.0,119600.0,1.80940618]
[1755175404934,0.01042951,119610.0,119600.0,1.80840618]
[1755175405181,0.01142951,119610.0,119600.0,1.28975363]
[1755175405423,0.01656951,119610.0,119600.0,0.79813055]
[1755175405726,0.01556951,119610.0,119600.0,0.28722255]
[1755175405744,0.01556951,119610.0,119600.0,0.59049155]
[1755175406000,0.03856951,119610.0,119600.0,0.48909155]
[1755175406244,0.03856951,119610.0,119600.0,0.59049155]
[1755175406487,0.03977834,119610.0,119600.0,0.59049155]
[1755175406724,0.01142951,119610.0,119600.0,1.61955818]
[1755175406976,0.01142951,119610.0,119600.0,1.4523341]
[1755175407226,0.01142951,119610.0,119600.0,1.89008218]
[1755175407676,0.01142951,119610.0,119600.0,1.20101555]
[1755175408137,0.01442951,119610.0,119600.0,1.20101555]
[1755175408366,0.01342951,119610.0,119600.0,1.36819963]
[1755175408591,0.01142951,119610.0,119600.0,1.89004218]
[1755175408829,0.01342951,119610.0,119600.0,1.89004218]
[1755175409062,0.01442951,119610.0,119600.0,1.89004218]
[1755175409532,0.01442951,119610.0,119600.0,2.34870643]
[1755175409804,0.01442951,119610.0,119600.0,1.82686388]
[1755175409995,0.01142951,119610.0,119600.0,1.82686388]
[1755175410217,0.01142951,119610.0,119600.0,1.30502133]
[1755175410437,0.01142951,119610.0,119600.0,1.30498133]
[1755175410669,0.01142951,119610.0,119600.0,1.82650324]
[1755175410944,0.01042951,119610.0,119600.0,1.65608916]
[1755175411174,0.01042951,119610.0,119600.0,1.66453224]
[1755175411411,0.01042951,119610.0,119600.0,1.14301033]
[1755175411638,0.01142951,119610.0,119600.0,1.59733341]
[1755175412295,0.01142951,119610.0,119600.0,1.94847819]
[1755175412505,0.01342951,119610.0,119600.0,1.97013156]
[1755175412719,0.01199471,119610.0,119600.0,1.99492273]
[1755175412931,0.01241934,119610.0,119600.0,1.97326936]
[1755175413146,0.01241934,119610.0,119600.0,1.97322936]
[1755175413373,0.00941934,119610.0,119600.0,2.97322936]
[1755175413600,0.00941934,119610.0,119600.0,3.01296276]
[1755175414234,0.00941934,119610.0,119600.0,2.99130939]
[1755175414858,0.00941934,119610.0,119600.0,2.9727797]
[1755175415070,0.00941934,119610.0,119600.0,1.9563998]
[1755175415276,0.00941934,119610.0,119600.0,2.11897858]
[1755175415486,0.00941934,119610.0,119600.0,1.9727397]
[1755175416105,0.00941934,119610.0,119600.0,1.75351307]
[1755175416311,0.00941934,119610.0,119600.0,1.99435307]
[1755175416519,0.00941934,119610.0,119600.0,2.0124331]
[1755175416728,0.00941934,119610.0,119600.0,3.99435307]
[1755175416939,0.00941934,119610.0,119600.0,3.99781753]
[1755175417155,0.00941934,119610.0,119600.0,4.2829328]
[1755175417410,0.00941934,119610.0,119600.0,4.3079948]
[1755175417597,0.00550613,119610.0,119600.0,4.3079948]
[1755175417821,0.00550613,119610.0,119600.0,4.2038531]
[1755175418033,0.00550613,119610.0,119600.0,2.6543099]
[1755175418249,0.00550613,119610.0,119600.0,2.13306233]
[1755175418525,0.00550613,119610.0,119600.0,3.20234864]
[1755175418746,0.00550613,119610.0,119600.0,2.19834864]
[1755175418958,0.00550613,119610.0,119600.0,2.22346647]
[1755175419176,0.00550613,119610.0,119600.0,2.22546647]
[1755175419383,0.00550613,119610.0,119600.0,2.29131477]
[1755175419834,0.00550613,119610.0,119600.0,3.29131477]
[1755175420050,0.00550613,119610.0,119600.0,2.24881963]
[1755175420262,0.00550613,119610.0,119600.0,3.28931477]
[1755175420693,0.00550613,119610.0,119600.0,0.9338482]
[1755175420906,0.00550613,119610.0,119600.0,0.76662412]
[1755175421182,0.00550613,119610.0,119600.0,1.54762412]
[1755175421391,0.00550613,119610.0,119600.0,1.7158482]
[1755175421829,0.00550613,119610.0,119600.0,1.19360063]
[1755175422042,0.00650613,119610.0,119600.0,1.7148482]
[1755175422253,0.00650613,119610.0,119600.0,1.19460063]
[1755175422481,0.00650613,119610.0,119600.0,1.7158482]
[1755175423784,0.00650613,119610.0,119600.0,1.7148482]
[1755175425077,0.00650613,119610.0,119600.0,1.19360063]
[1755175425290,0.00650613,119610.0,119600.0,1.7148482]
[1755175426145,0.00650613,119610.0,119600.0,1.19658063]
[1755175426367,0.00650613,119610.0,119600.0,1.19360063]
[1755175426579,0.00650613,119610.0,119600.0,1.7148482]
[1755175427007,0.00650613,119610.0,119600.0,1.4741682]
[1755175427216,0.00650613,119610.0,119600.0,1.19344063]
[1755175427447,0.00650613,119610.0,119600.0,1.7146882]
[1755175427880,0.00969613,119610.0,119600.0,1.54746412]
[1755175428108,0.14798496,119610.0,119600.0,0.00863355]
[1755175428321,0.02520883,119590.0,119580.0,0.08272325]
[1755175428526,0.02819,119590.0,119580.0,0.32382705]
[1755175428768,0.02839883,119590.0,119580.0,0.52414705]
[1755175429213,0.00219,119590.0,119580.0,1.04539462]
[1755175429434,0.02719,119590.0,119580.0,0.98834405]
[1755175429650,0.02739883,119590.0,119580.0,0.28370705]
[1755175429860,0.02719,119590.0,119580.0,0.28470705]
[1755175430076,0.03239883,119590.0,119580.0,0.86510705]
[1755175430300,0.03219,119590.0,119580.0,0.86510705]
[1755175430508,0.03239883,119590.0,119580.0,0.42438705]
[1755175430717,0.03219,119590.0,119580.0,0.86506705]
[1755175430927,0.00719,119590.0,119580.0,1.38631462]
[1755175431141,0.03,119590.0,119580.0,0.94563462]
[1755175431402,0.005,119590.0,119580.0,2.17573066]
[1755175431618,0.008,119590.0,119580.0,2.17506686]
[1755175432035,0.008,119590.0,119580.0,1.65381929]
[1755175432258,0.008,119590.0,119580.0,1.88968486]
[1755175432480,0.008,119590.0,119580.0,1.89266486]
[1755175432736,0.008,119590.0,119580.0,1.91431823]
[1755175432971,0.008,119590.0,119580.0,1.47422203]
[1755175433185,0.003,119590.0,119580.0,1.12770109]
[1755175433399,0.003,119590.0,119580.0,0.86344909]
[1755175433615,0.025,119600.0,119590.0,0.34]
[1755175433815,0.025,119600.0,119590.0,0.42272325]
[1755175434027,0.02819,119600.0,119590.0,0.42272325]
[1755175434238,0.025,119600.0,119590.0,0.94397082]
[1755175434443,0.025,119600.0,119590.0,0.42272325]
[1755175434656,0.025,119600.0,119590.0,0.94397082]
[1755175434859,0.02819,119600.0,119590.0,0.42272325]
[1755175435486,0.02819,119600.0,119590.0,0.66392325]
[1755175435487,0.03339883,119600.0,119590.0,0.66392325]
[1755175436122,0.03,119600.0,119590.0,2.16358782]
[1755175436328,0.005,119600.0,119590.0,1.80957831]
[1755175436801,0.005,119600.0,119590.0,0.87733325]
[1755175437002,0.03,119600.0,119590.0,0.93923325]
[1755175437417,0.032,119600.0,119590.0,0.66392325]
[1755175437620,0.032,119600.0,119590.0,1.8304489]
[1755175438049,0.00677066,119600.0,119590.0,1.44533831]
[1755175438256,0.00677066,119600.0,119590.0,1.29712823]
[1755175438465,0.00677066,119600.0,119590.0,1.08604225]
[1755175438715,0.00677066,119600.0,119590.0,1.23609784]
[1755175438939,0.00677066,119600.0,119590.0,0.84800725]
[1755175439157,0.03177066,119600.0,119590.0,0.66392325]
[1755175439604,0.03496066,119600.0,119590.0,0.66392325]
[1755175439825,0.03496066,119600.0,119590.0,1.05201384]
[1755175440045,0.03496066,119600.0,119590.0,0.68899625]
[1755175440295,0.03496066,119600.0,119590.0,1.07708684]
[1755175440518,0.03197949,119600.0,119590.0,0.66392325]
[1755175440754,0.03516949,119600.0,119590.0,0.66392325]
[1755175440967,0.03516949,119600.0,119590.0,1.05201384]
[1755175441392,0.03516949,119600.0,119590.0,0.42372325]
[1755175441628,0.03516949,119600.0,119590.0,1.05247754]
[1755175441844,0.03496066,119600.0,119590.0,1.05247754]
[1755175442496,0.03516949,119600.0,119590.0,1.05247754]
[1755175442702,0.03516949,119600.0,119590.0,0.66438695]
[1755175443378,0.03516949,119600.0,119590.0,1.20964578]
[1755175444026,0.03516949,119600.0,119590.0,0.66438695]
[1755175444260,0.03197949,119600.0,119590.0,1.20964578]
[1755175444490,0.03197949,119600.0,119590.0,0.66438695]
[1755175444699,0.03177066,119600.0,119590.0,1.37986384]
[1755175444917,0.03177066,119600.0,119590.0,2.41428982]
[1755175445339,0.00677066,119600.0,119590.0,1.86903099]
[1755175445551,0.00677066,119600.0,119590.0,2.41428982]
[1755175445785,0.00677066,119600.0,119590.0,2.61440982]
[1755175446015,0.00677066,119600.0,119590.0,2.63301801]
[1755175446703,0.00677066,119600.0,119590.0,2.74747801]
[1755175446988,0.00677066,119600.0,119590.0,2.74743801]
[1755175447232,0.00677066,119600.0,119590.0,2.21370568]
[1755175447462,0.00154066,119600.0,119590.0,2.74743801]
[1755175447885,0.00154066,119600.0,119590.0,2.75896451]
[1755175448576,0.00154066,119600.0,119590.0,2.20217918]
[1755175448798,0.00154066,119600.0,119590.0,1.48040112]
[1755175449015,0.00154066,119600.0,119590.0,0.60883201]
[1755175449225,0.00154066,119600.0,119590.0,1.39369084]
[1755175449442,0.00154066,119600.0,119590.0,1.56545278]
[1755175449662,0.03050613,119610.0,119600.0,0.34]
[1755175449869,0.03050613,119610.0,119600.0,0.80404525]
[1755175450289,0.03050613,119610.0,119600.0,0.66199225]
[1755175450771,0.03050613,119610.0,119600.0,0.54637825]
[1755175450984,0.03369613,119610.0,119600.0,0.42272325]
[1755175451204,0.03369613,119610.0,119600.0,0.67399325]
[1755175451409,0.03050613,119610.0,119600.0,0.42272325]
[1755175451614,0.03050613,119610.0,119600.0,0.86252325]
[1755175452061,0.03050613,119610.0,119600.0,0.86248325]
[1755175452499,0.03050613,119610.0,119600.0,2.04939908]
[1755175452707,0.03150613,119610.0,119600.0,1.30285825]
[1755175452928,0.03450613,119610.0,119600.0,1.30285825]
[1755175453589,0.03150613,119610.0,119600.0,0.86309825]
[1755175453817,0.03150613,119610.0,119600.0,1.06709925]
[1755175454022,0.03171496,119610.0,119600.0,1.06709925]
[1755175454437,0.03250613,119610.0,119600.0,1.06709925]
[1755175454672,0.03271496,119610.0,119600.0,1.06709925]
[1755175454893,0.03471496,119610.0,119600.0,1.06709925]
[1755175455109,0.03790496,119610.0,119600.0,0.52248325]
[1755175455546,0.04051761,119610.0,119600.0,0.52228325]
[1755175455756,0.04051761,119610.0,119600.0,0.43956]
[1755175456243,0.03851761,119610.0,119600.0,0.43956]
[1755175456669,0.03890496,119610.0,119600.0,0.43956]
[1755175456894,0.03890496,119610.0,119600.0,0.52228325]
[1755175457123,0.03851761,119610.0,119600.0,0.52228325]
[1755175457374,0.65124144,119610.0,119600.0,0.43956]
[1755175457588,0.65124144,119610.0,119600.0,0.2392]
[1755175457589,0.27458005,119610.0,119600.0,0.2392]
[1755175457799,0.27458005,119610.0,119560.0,0.0257449]
[1755175457800,0.00020883,119570.0,119560.0,0.0257449]
[1755175458023,0.02839883,119570.0,119560.0,0.08338715]
[1755175458239,0.02839883,119570.0,119520.0,0.30226059]
[1755175458240,0.02520883,119550.0,119540.0,0.00435971]
[1755175458458,0.57627162,119550.0,119540.0,0.00435971]
[1755175458702,0.63128482,119550.0,119540.0,0.24339971]
[1755175458929,0.57265766,119550.0,119540.0,0.23904]
[1755175459149,0.02420883,119520.0,119510.0,0.00436075]
[1755175459363,0.02739883,119520.0,119510.0,0.24336075]
[1755175459793,0.03001345,119520.0,119510.0,0.239]
[1755175460057,0.03001345,119520.0,119510.0,0.32172325]
[1755175460272,0.02739883,119520.0,119510.0,0.32172325]
[1755175460496,0.02420883,119520.0,119510.0,0.32172325]
[1755175461141,0.02739883,119520.0,119510.0,0.32172325]
[1755175461365,0.02739883,119520.0,119510.0,0.239]
[1755175461582,0.02420883,119490.0,119480.0,0.23021752]
[1755175461792,0.02320883,119490.0,119480.0,0.55186077]
[1755175461999,0.02320883,119490.0,119480.0,1.1000596]
[1755175462000,0.023,119490.0,119480.0,1.1000596]
[1755175462218,0.023,119490.0,119480.0,2.15787868]
[1755175462431,0.023,119490.0,119480.0,2.13278268]
[1755175462688,0.023,119490.0,119480.0,2.17988466]
[1755175462901,0.023,119500.0,119490.0,0.50737802]
[1755175463112,0.023,119500.0,119490.0,1.24257908]
[1755175463329,0.02320883,119500.0,119490.0,0.42566325]
[1755175463554,0.02320883,119500.0,119490.0,0.08272325]
[1755175463763,0.02320883,119500.0,119490.0,0.32152325]
[1755175464461,0.02320883,119500.0,119490.0,0.32252325]
[1755175464901,0.02520883,119500.0,119490.0,0.66318755]
[1755175465164,0.02639883,119500.0,119490.0,0.23972]
[1755175465395,0.02639883,119500.0,119490.0,0.32244325]
[1755175465396,0.023,119500.0,119490.0,0.32244325]
[1755175465628,0.02320883,119500.0,119490.0,0.32244325]
[1755175465859,0.028,119500.0,119490.0,0.32410755]
[1755175466084,0.023,119500.0,119490.0,1.21130638]
[1755175466311,0.023,119500.0,119490.0,1.83239226]
[1755175466546,0.027,119500.0,119490.0,1.6330524]
[1755175466771,0.029,119500.0,119490.0,0.86540755]
[1755175467004,0.029,119500.0,119490.0,0.62382755]
[1755175467005,0.02920883,119500.0,119490.0,0.62382755]
[1755175467233,0.02720883,119500.0,119490.0,0.86242755]
[1755175467464,0.02720883,119500.0,119490.0,1.5780044]
[1755175467465,0.027,119500.0,119490.0,1.5780044]
[1755175467693,0.023,119500.0,119490.0,1.59562926]
[1755175467952,0.023,119500.0,119490.0,1.5780044]
[1755175468184,0.00020883,119530.0,119520.0,0.34]
[1755175468416,0.023,119520.0,119510.0,1.06097504]
[1755175468651,0.023,119520.0,119510.0,1.30309914]
[1755175468880,0.023,119520.0,119510.0,1.40344725]
[1755175469134,0.023,119520.0,119510.0,0.85818842]
[1755175469365,0.023,119520.0,119510.0,1.40344725]
[1755175469595,0.023,119520.0,119510.0,0.89506585]
[1755175469822,0.023,119520.0,119510.0,0.71934964]
[1755175470066,0.02320883,119520.0,119510.0,0.32182735]
[1755175470342,0.02320883,119520.0,119510.0,0.08338735]
[1755175470554,0.023,119520.0,119510.0,0.52524735]
[1755175470761,0.02320883,119520.0,119510.0,0.86524735]
[1755175470980,0.023,119520.0,119510.0,0.86524735]
[1755175471186,0.02320883,119520.0,119510.0,1.56647618]
[1755175471433,0.02520883,119520.0,119510.0,0.62680735]
[1755175471715,0.02420883,119520.0,119510.0,0.86226735]
[1755175471945,0.02820883,119520.0,119510.0,0.28386735]
[1755175472168,0.02739883,119520.0,119510.0,0.28386735]
[1755175472388,0.02739883,119520.0,119510.0,0.52148325]
[1755175472609,0.02939883,119520.0,119510.0,0.52148325]
[1755175472826,0.02939883,119520.0,119510.0,0.28320325]
[1755175473067,0.02839883,119520.0,119510.0,0.52148325]
[1755175473301,0.00220883,119520.0,119510.0,0.52148325]
[1755175473529,0.025,119520.0,119510.0,0.52214735]
[1755175473754,0.025,119520.0,119510.0,0.86214735]
[1755175474208,0.026,119520.0,119510.0,0.86214735]
[1755175474450,0.02420883,119520.0,119510.0,1.42820223]
[1755175474672,0.024,119520.0,119510.0,1.42820223]
[1755175474919,0.02420883,119520.0,119510.0,0.62486735]
[1755175475151,0.02420883,119520.0,119510.0,0.86302735]
[1755175475375,0.02420883,119520.0,119510.0,1.62155124]
[1755175475641,0.02420883,119520.0,119510.0,1.28984435]
[1755175475876,0.02420883,119520.0,119510.0,0.99101635]
[1755175476103,0.02420883,119520.0,119510.0,1.70562519]
[1755175476329,0.024,119520.0,119510.0,1.70562519]
[1755175476549,0.001,119520.0,119510.0,1.72351124]
[1755175476831,0.001,119520.0,119510.0,1.70562519]
[1755175477273,0.02420883,119520.0,119510.0,1.33427223]
[1755175477496,0.02420883,119520.0,119510.0,0.88895635]
[1755175477743,0.02320883,119520.0,119510.0,0.9041783]
[1755175477986,0.02320883,119520.0,119510.0,0.9051783]
[1755175478229,0.02320883,119520.0,119510.0,0.52208325]
[1755175478465,0.02617883,119520.0,119510.0,0.001]
[1755175478690,0.25427323,119520.0,119510.0,0.001]
[1755175478909,0.57143766,119520.0,119510.0,0.23884]
[1755175479155,0.02617883,119520.0,119510.0,0.23884]
[1755175479419,0.74338829,119520.0,119510.0,0.23884]
[1755175479675,0.19351484,119520.0,119510.0,0.23884]
[1755175479910,0.73877367,119520.0,119510.0,0.23784]
[1755175480158,0.02320883,119490.0,119480.0,0.0004]
[1755175480452,0.73881568,119490.0,119480.0,0.0004]
[1755175480671,0.19334802,119490.0,119480.0,0.23812]
[1755175480896,0.73881568,119490.0,119480.0,0.23812]
[1755175481105,0.92802336,119490.0,119480.0,0.23812]
[1755175481754,0.95597002,119490.0,119480.0,0.23912]
[1755175482011,0.85753893,119490.0,119480.0,0.23912]
[1755175482227,0.3122801,119490.0,119480.0,0.23912]
[1755175482436,0.85753893,119490.0,119480.0,0.23912]
[1755175482652,0.3122801,119490.0,119480.0,0.23912]
[1755175482861,0.85753893,119490.0,119480.0,0.23912]
[1755175483063,0.94002336,119490.0,119480.0,0.23912]
[1755175483333,0.3122801,119490.0,119480.0,0.23912]
[1755175483537,0.85753893,119490.0,119480.0,0.23912]
[1755175484184,0.3122801,119490.0,119480.0,0.23912]
[1755175484398,0.69016091,119490.0,119480.0,0.23912]
[1755175484623,0.14490208,119490.0,119480.0,0.23912]
[1755175484836,0.86015421,119490.0,119480.0,0.23912]
[1755175485054,0.71565238,119490.0,119480.0,0.23912]
[1755175485261,0.63292913,119490.0,119480.0,0.23912]
[1755175485909,0.59763595,119490.0,119480.0,0.23912]
[1755175486120,0.6803592,119490.0,119480.0,0.23912]
[1755175486743,0.84773722,119490.0,119480.0,0.23912]
[1755175487396,0.87273722,119490.0,119480.0,0.23912]
[1755175487689,0.7053592,119490.0,119480.0,0.23912]
[1755175487927,0.05237712,119490.0,119480.0,0.23912]
[1755175488204,0.0549924,119490.0,119480.0,0.23912]
[1755175488455,0.22237042,119490.0,119480.0,0.23912]
[1755175488664,0.81578473,119490.0,119480.0,0.23912]
[1755175488869,0.81578473,119490.0,119480.0,0.0014]
[1755175489074,0.89850798,119490.0,119480.0,0.0014]
[1755175489281,0.92350798,119490.0,119480.0,0.23868]
[1755175489493,0.16010037,119490.0,119480.0,0.23868]
[1755175489758,0.16271565,119490.0,119480.0,0.23868]
[1755175489968,0.05181357,119490.0,119480.0,0.23868]
[1755175490180,0.04919829,119490.0,119480.0,0.23868]
[1755175490388,0.04940712,119490.0,119480.0,0.0014]
[1755175490601,0.04940712,119490.0,119480.0,0.23852]
[1755175490602,0.67645436,119490.0,119480.0,0.23852]
[1755175490811,0.92394035,119490.0,119480.0,0.23852]
[1755175491035,0.92394035,119490.0,119430.0,0.01899058]
[1755175491036,0.022,119440.0,119430.0,0.01899058]
[1755175491278,0.022,119440.0,119360.0,1.0034]
[1755175491279,0.022,119410.0,119400.0,0.00313]
[1755175491487,0.022,119410.0,119400.0,0.24017]
[1755175491488,0.02220883,119410.0,119400.0,0.24017]
[1755175492133,0.022,119410.0,119400.0,0.24017]
[1755175492351,0.022,119410.0,119400.0,0.32289325]
[1755175492564,0.021,119410.0,119400.0,0.31789325]
[1755175492779,0.02120883,119410.0,119400.0,0.31789325]
[1755175492956,0.02120883,119410.0,119400.0,0.51849325]
[1755175493910,0.021,119410.0,119400.0,1.06375208]
[1755175494347,0.022,119410.0,119400.0,0.51949325]
[1755175494555,0.021,119410.0,119400.0,1.46244791]
[1755175494773,0.021,119410.0,119400.0,1.46464791]
[1755175495030,0.02420883,119410.0,119400.0,1.46564791]
[1755175495250,0.024,119410.0,119400.0,1.46564791]
[1755175495465,0.02120883,119410.0,119400.0,1.46464791]
[1755175495680,0.02120883,119410.0,119400.0,1.19511908]
[1755175495894,0.02220883,119410.0,119400.0,1.74137791]
[1755175496573,0.00261615,119450.0,119400.0,1.74137791]
[1755175496786,0.19245666,119490.0,119450.0,0.025]
[1755175496787,0.00297,119490.0,119450.0,0.025]
[1755175497002,0.00297,119490.0,119420.0,0.50747397]
[1755175497003,0.00158059,119490.0,119460.0,0.26172]
[1755175497228,0.00455059,119490.0,119460.0,0.23672]
[1755175497446,0.17036206,119480.0,119460.0,0.23672]
[1755175497679,0.00455059,119470.0,119460.0,0.23672]
[1755175497894,0.01963763,119470.0,119460.0,0.23672]
[1755175498331,0.56489646,119470.0,119460.0,0.23672]
[1755175498549,0.73072191,119470.0,119460.0,0.23672]
[1755175498789,0.73072191,119470.0,119460.0,0.23772]
[1755175499015,0.18546308,119470.0,119460.0,0.23772]
[1755175499230,0.18546308,119470.0,119460.0,0.23672]
[1755175499454,0.18746308,119470.0,119460.0,0.23772]
[1755175499673,0.18546308,119470.0,119460.0,0.23672]
[1755175499901,0.01805591,119470.0,119460.0,0.23672]
[1755175500090,0.0196365,119470.0,119460.0,0.23672]
[1755175500346,0.01508591,119470.0,119460.0,0.31944325]
[1755175500570,0.01908591,119470.0,119460.0,1.43112208]
[1755175500795,0.01908591,119470.0,119460.0,1.453105]
[1755175501018,0.01908591,119470.0,119460.0,0.79816905]
[1755175501256,0.02209133,119470.0,119460.0,0.54662325]
[1755175501489,0.007,119470.0,119460.0,0.30940325]
[1755175501716,0.54525883,119480.0,119460.0,0.43712]
[1755175501960,0.00158059,119470.0,119460.0,0.43712]
[1755175502202,0.01964726,119470.0,119460.0,0.43812]
[1755175502673,0.01964726,119470.0,119460.0,0.43712]
[1755175502902,0.02467726,119470.0,119460.0,0.43812]
[1755175503119,0.02467726,119470.0,119460.0,0.20168]
[1755175503335,0.02764726,119470.0,119460.0,0.438]
[1755175503560,0.02764726,119470.0,119460.0,0.23728]
[1755175503561,1.08031213,119470.0,119460.0,0.23728]
[1755175503780,1.07873154,119470.0,119460.0,0.23728]
[1755175504049,1.15845479,119470.0,119460.0,0.23728]
[1755175504260,1.15845479,119470.0,119420.0,0.22569]
[1755175504261,0.16743466,119450.0,119420.0,0.20064]
[1755175504474,0.00158059,119440.0,119430.0,0.23624]
[1755175504700,0.00058059,119440.0,119420.0,0.20064]
[1755175504922,0.00058059,119440.0,119430.0,0.2362]
[1755175505155,0.00355059,119440.0,119430.0,0.2362]
[1755175505380,0.16748057,119420.0,119380.0,0.04395922]
[1755175505587,0.00058059,119410.0,119390.0,0.31888325]
[1755175505791,0.00355059,119420.0,119390.0,0.31888325]
[1755175506005,0.00355059,119420.0,119390.0,0.31950325]
[1755175506215,0.00058059,119420.0,119390.0,0.33633764]
[1755175506669,0.17958174,119420.0,119390.0,0.31888325]
[1755175506882,0.00373059,119410.0,119390.0,0.23616]
[1755175507097,0.00058059,119400.0,119380.0,0.20064]
[1755175507315,0.00373059,119400.0,119380.0,0.20064]
[1755175507746,0.71649361,119400.0,119390.0,0.236]
[1755175507969,0.00315,119400.0,119390.0,0.236]
[1755175508186,0.00373059,119400.0,119390.0,0.236]
[1755175508398,0.00873059,119400.0,119390.0,0.236]
[1755175509297,0.00373059,119400.0,119390.0,0.236]
[1755175509504,0.17723477,119400.0,119390.0,0.237]
[1755175509711,0.25937743,119400.0,119390.0,0.23688]
[1755175509929,0.80463626,119400.0,119390.0,0.23688]
[1755175510134,0.80463626,119400.0,119390.0,0.001]
[1755175510135,1.14463626,119400.0,119390.0,0.001]
[1755175510377,1.7300698,119400.0,119390.0,0.001]
[1755175510594,0.64155214,119400.0,119390.0,0.001]
[1755175510801,1.7320698,119400.0,119390.0,0.001]
[1755175511229,1.18681097,119400.0,119390.0,0.001]
[1755175511442,0.16754272,119380.0,119360.0,0.23588]
[1755175511647,0.08645384,119370.0,119360.0,0.23588]
[1755175511848,0.26917483,119370.0,119360.0,0.23588]
[1755175512054,0.10104796,119370.0,119360.0,0.23588]
[1755175512269,0.10162855,119370.0,119360.0,0.23588]
[1755175512488,0.0157553,119370.0,119360.0,0.23588]
[1755175512697,0.01517471,119370.0,119360.0,0.23875]
[1755175512922,0.01517471,119370.0,119360.0,0.23588]
[1755175513138,0.0157553,119370.0,119360.0,0.31860325]
[1755175513344,0.01517471,119370.0,119360.0,0.31974325]
[1755175513566,0.01517471,119370.0,119340.0,0.34]
[1755175513780,0.01517471,119370.0,119350.0,0.23568]
[1755175513781,0.00058059,119360.0,119350.0,0.23568]
[1755175513995,0.0157553,119360.0,119350.0,0.68340325]
[1755175514227,0.00058059,119390.0,119360.0,0.025]
[1755175514463,0.01514824,119390.0,119370.0,0.44830325]